Cogmind - Beta 13 @@@ ROGUE MODE // 2024.06.23 @ 15:57:47 Player: procell Result: Destroyed by NK-0LA with NK-0LA's Tesla Doomcannon Performance ------------- Evolutions (3) 1500 Regions Visited (10) 2000 Robots Destroyed (124) 620 Value Destroyed (4305) 4305 Prototype IDs (5) 100 Alien Tech Used (0) 0 Bonus (600) 600 TOTAL SCORE: 9125 Bonus ------- Aligned with FarCom 300 Met Imprinter 300 Cogmind --------- Core Integrity 0/700 Matter 37/300 Energy 244/500 System Corruption 29% Temperature Cool (0) Movement Core (900) Ox17 Location -7/Zion Parts ------- > --- POWER (1) -------- F-cell Engine > --- PROPULSION (4) --- (None) > --- UTILITY (6) ------ High-capacity Storage Unit Hacking Suite > --- WEAPON (2) ------- (None) > --- INVENTORY (20) --- Advanced Cooling System 0b10 Decoder Chip [Generic] Improved Melee Analysis Suite Core Analyzer Microactuators Actuator Array Great Axe Great Axe Self-destruct Interrupter (50) Peak State ------------ > --- POWER ------------ Micro Nuclear Core > --- PROPULSION ------- Armored Huge Wheel Armored Huge Wheel > --- UTILITY ---------- Improved Cooling System Improved Cooling System High-capacity Storage Unit Advanced Targeting Computer Advanced Targeting Computer Hacking Suite > --- WEAPON ----------- Hardcell Cannon Hardcell Cannon > --- INVENTORY -------- Light Nuclear Core F-cell Engine Potential Leg Potential Leg Advanced Cooling System Melee Analysis Suite Core Analyzer Microactuators Actuator Array Improved Light Armor Plating Improved Medium Armor Plating Cooled Particle Cannon Minigun Advanced Assault Cannon Advanced EMP Blaster Advanced EMP Blaster Improved Datajack Great Axe Great Axe Great Axe [Rating: 61] Favorites ----------- Power Ion Engine Engine Ion Engine Power Core Micro Nuclear Core Propulsion Wheel Treads Light Treads Leg Potential Leg Wheel Wheel Utility Advanced Targeting Computer Device Improved Terrain Scanner Storage High-capacity Storage Unit Processor Advanced Targeting Computer Hackware Hacking Suite Protection Hardened Medium Armor Plating Weapon Light Assault Rifle Energy Cannon Cooled Particle Cannon Ballistic Gun Light Assault Rifle Ballistic Cannon Hardcell Cannon Launcher Rocket Launcher Slashing Weapon Katana Piercing Weapon Spear Build | -11 -10 -10 -10 -9 -8 -8 -7 -7 -7 -7 ------- Run | Yrd Mat Min Exi Min Mat Sto Fac Low Low Zio Slots Evolved 6 | . . . . . 4 . 2 . . . Power . | . . . . . . . . . . . Propulsion 2 | . . . . . 1 . 1 . . . Utility 4 | . . . . . 3 . 1 . . . Weapon . | . . . . . . . . . . . Parts Attached 121 | 8 8 6 1 5 38 25 15 . 1 14 Power 14 | 1 2 . . . 4 3 1 . . 3 Engine 10 | 1 2 . . . 3 2 . . . 2 Core 4 | . . . . . 1 1 1 . . 1 Reactor . | . . . . . . . . . . . Propulsion 24 | 2 2 2 1 1 4 3 4 . 1 4 Treads 12 | 1 1 1 1 . 2 3 . . 1 2 Leg 4 | . . . . . 2 . . . . 2 Wheel 8 | 1 1 1 . 1 . . 4 . . . Hover . | . . . . . . . . . . . Flight . | . . . . . . . . . . . Utility 38 | 3 2 2 . 1 13 7 6 . . 4 Device 17 | 2 1 2 . . 3 2 5 . . 2 Storage 3 | 1 1 . . . 1 . . . . . Processor 4 | . . . . . 2 2 . . . . Hackware 2 | . . . . . 1 1 . . . . Protection 12 | . . . . 1 6 2 1 . . 2 Artifact . | . . . . . . . . . . . Weapon 45 | 2 2 2 . 3 17 12 4 . . 3 Energy Gun . | . . . . . . . . . . . Energy Cannon 2 | . . . . . . 1 . . . 1 Ballistic Gun 25 | 2 1 2 . 2 11 7 . . . . Ballistic Cannon 3 | . . . . . . . 2 . . 1 Launcher 4 | . 1 . . 1 1 . . . . 1 Special Weapon . | . . . . . . . . . . . Impact Weapon . | . . . . . . . . . . . Slashing Weapon 9 | . . . . . 3 4 2 . . . Piercing Weapon 2 | . . . . . 2 . . . . . Special Melee Weapon . | . . . . . . . . . . . Unidentified Prototypes 2 | . . . . . . . . . . 2 Parts Lost 40 | . 1 2 . 1 5 9 2 . 1 19 Power 9 | . 1 . . . 2 3 1 . . 2 Propulsion 8 | . . 1 . 1 . 1 . . 1 4 Utility 15 | . . 1 . . 2 3 1 . . 8 Weapon 8 | . . . . . 1 2 . . . 5 Highest Loss Streak 18 | . 1 2 . 1 3 3 2 . 1 18 To Critical Strikes . | . . . . . . . . . . . Average Slot Usage (%) 93 | . 99 87 100 99 99 99 83 84 83 83 Engine 7 | . 13 14 14 14 5 6 3 . . 2 Core 2 | . . . . . 3 1 3 7 7 4 Treads 8 | . 14 14 14 14 11 8 . . 5 7 Leg 6 | . . . . . 12 18 . . . . Wheel 7 | . 14 12 14 13 2 . 15 15 8 6 Device 11 | . 14 2 14 1 8 9 14 15 15 14 Storage 9 | . 14 14 14 14 9 9 7 7 7 7 Processor 8 | . . . . . 9 9 15 15 15 14 Hackware 5 | . . . . . 3 9 7 7 7 7 Protection 4 | . . . . 12 14 7 . . . . Ballistic Gun 14 | . 27 28 28 27 16 16 3 . . . Ballistic Cannon 4 | . . . . . . . 7 15 15 14 Naked Turns . | . . . . . . . . . . . Heaviest Build 74 | 13 48 46 46 50 74 70 70 70 70 70 Greatest Support 60 | 20 10 10 23 10 60 60 56 56 56 28 Greatest Overweight (x) 6 | 1 4 4 4 4 6 1 1 1 2 2 Average Overweight (x) 1 | . 3 4 2 4 2 . 1 1 1 2 Largest Inventory Capacity 20 | 8 20 20 20 20 20 20 20 20 20 20 Average Capacity 14 | 7 19 20 20 20 20 20 20 20 20 20 Most Carried 20 | 8 20 20 20 20 20 20 20 20 20 20 Average Carried 13 | 6 15 19 19 19 19 19 19 20 19 19 Final Capacity 20 | 8 20 20 20 20 20 20 20 20 20 20 Final Carried 20 | 8 20 20 20 18 20 19 20 20 20 9 Class Distribution -------------------- 88% | Mutant 10% | Scavenger-Mutant Dominant Class ---------------- Mutant | -10/Materials Mutant | -10/Mines Mutant | -10/Exiles Mutant | -9/Mines Mutant | -8/Materials Scavenger-Mutant | -8/Storage Mutant | -7/Factory Mutant | -7/Lower Caves Mutant | -7/Lower Caves Mutant | -7/Zion Resources | -11 -10 -10 -10 -9 -8 -8 -7 -7 -7 -7 ----------- Run | Yrd Mat Min Exi Min Mat Sto Fac Low Low Zio Matter Collected 3303 | 314 167 141 67 105 684 858 380 255 125 207 Remotely . | . . . . . . . . . . . Salvage Created 4278 | 177 613 85 . 66 687 1499 564 197 125 265 Parts 258 | 15 37 7 . 10 43 69 42 5 6 24 Haulers Intercepted 1 | . 1 . . . . . . . . . Recyclers Shooed 4 | . . . . 2 . 2 . . . . Parts Field Recycled . | . . . . . . . . . . . Retrieved Matter . | . . . . . . . . . . . Parts Self-Destructed 11 | . . . . . . . . 5 5 1 Prevented 2 | . . . . . . . . . 2 . Kills | -11 -10 -10 -10 -9 -8 -8 -7 -7 -7 -7 ------- Run | Yrd Mat Min Exi Min Mat Sto Fac Low Low Zio Combat Hostiles Destroyed 94 | . 13 3 . 4 17 27 14 5 6 5 Melee 8 | . . . . . 5 1 2 . . . Guns 46 | . 10 3 . . 8 23 2 . . . Cannons 29 | . . . . . . 3 10 5 6 5 AOE 11 | . 3 . . 4 4 . . . . . Classes Destroyed 17 | 2 5 . . 1 2 2 2 . . 3 Worker 2 | . 2 . . . . . . . . . Builder 2 | . . . . 2 . . . . . . Tunneler 5 | 5 . . . . . . . . . . Hauler 1 | . 1 . . . . . . . . . Recycler 4 | 1 1 . . 1 . 1 . . . . Watcher 7 | . 2 . . . 1 1 3 . . . Swarmer 24 | . 3 2 . 3 3 . 5 4 4 . Grunt 39 | . 10 1 . 1 7 19 . . 1 . Brawler 2 | . . . . . . 2 . . . . Duelist 1 | . . . . . . 1 . . . . Sentry 13 | . . . . . 5 5 2 . 1 . Specialist 2 | . . . . . 2 . . . . . Hunter 2 | . . . . . . . 1 1 . . Programmer 6 | . . . . . . . 6 . . . Zionite 9 | . . . . . . . . . . 9 Tinkerer 1 | . . . . . . . . . . 1 Butcher 1 | . . . . . . . . . . 1 Mutant 4 | . . . . . . . . . . 4 Best Kill Streak 7 | 2 7 2 . 5 3 3 3 4 4 7 Combat Bots Only 4 | . 3 2 . 3 3 3 3 4 4 3 Max Kills in Single Turn 3 | 1 2 1 . 3 3 1 1 1 1 2 Gunslinging . | . . . . . . . . . . . Exploded 3 | . 1 . . 2 3 . . . . . Melee 1 | . . . . . 1 1 1 . . . Uniques/NPCs Destroyed . | . . . . . . . . . . . Combat | -11 -10 -10 -10 -9 -8 -8 -7 -7 -7 -7 -------- Run | Yrd Mat Min Exi Min Mat Sto Fac Low Low Zio Hostile Shots Fired 658 | . 54 31 . 20 128 132 43 14 33 203 Missed 182 | . 13 8 . 6 28 28 11 2 10 76 Damage Taken 8257 | . 541 252 . 276 1623 1724 605 196 290 2750 Core 1219 | . 96 60 . 12 139 191 124 34 34 529 Absorbed by Shields 94 | . . . . . . . 94 . . . Regen/Repaired (Parts) 302 | . . . . . 53 168 81 . . . Core Remaining (%) 57 | 100 . . . 32 . 40 . . . . Volleys Fired 319 | 17 61 15 . 11 36 99 29 11 8 32 Largest 2 | 2 2 2 . 2 2 2 2 2 2 2 Hottest 130 | 40 40 40 . 50 56 56 130 130 130 130 Shots Fired 618 | 34 111 30 . 20 71 194 59 23 16 60 Gun 434 | 34 100 30 . 9 64 179 18 . . . Cannon 155 | . . . . . . 15 41 23 16 60 Launcher 29 | . 11 . . 11 7 . . . . . Special . | . . . . . . . . . . . Kinetic 555 | 34 100 30 . 9 64 179 41 23 16 59 Thermal 34 | . . . . . . 15 18 . . 1 Explosive 29 | . 11 . . 11 7 . . . . . Electromagnetic . | . . . . . . . . . . . Robot Hit Streak 22 | 5 10 10 . 11 20 22 14 8 8 20 Robot Miss Streak 6 | 2 6 2 . 1 4 5 4 3 2 2 Penetration Max 1 | . . . . . . 1 . . . . Secondary Targets 1 | . . . . . . 1 . . . . Max Gunslinging Chain 1 | . . . . . . 1 . . . . Shots Hit Robots 427 | 21 63 21 . 4 67 146 40 13 9 43 Core Hits 218 | 11 40 8 . 9 36 61 20 7 7 19 Critical Kills 1 | . . . . . . 1 . . . . Critical Parts Destroyed 5 | . . 1 . . . 4 . . . . Critical Strikes 13 | . . 1 . . 3 5 1 . 1 2 Destroy 6 | . . 1 . . . 5 . . . . Blast 4 | . . . . . . . 1 . 1 2 Impale 3 | . . . . . 3 . . . . . Melee Attacks 47 | . . . . . 34 10 3 . . . Impact . | . . . . . . . . . . . Slashing 20 | . . . . . 7 10 3 . . . Piercing 27 | . . . . . 27 . . . . . Sneak Attacks 1 | . . . . . . . 1 . . . Combat Hostiles 1 | . . . . . . . 1 . . . Follow-up Attacks . | . . . . . . . . . . . Damage Inflicted 10037 | 174 845 195 . 576 1600 2947 1331 403 398 1568 Guns 4520 | 174 500 195 . 16 814 2616 205 . . . Cannons 3550 | . . . . . . 295 886 403 398 1568 Explosions 1209 | . 345 . . 560 193 . 111 . . . Melee 758 | . . . . . 593 36 129 . . . Ramming . | . . . . . . . . . . . Kinetic 7410 | 174 500 195 . 16 814 2616 726 403 398 1568 Thermal 771 | . . . . . . 295 476 . . . Explosive 1098 | . 345 . . 560 193 . . . . . Electromagnetic . | . . . . . . . . . . . Impact . | . . . . . . . . . . . Slashing 165 | . . . . . . 36 129 . . . Piercing 593 | . . . . . 593 . . . . . Highest Corruption 29 | . . . . . . . 4 4 4 29 Average Corruption 3 | . . . . . . . 3 4 4 5 Corruption Purged . | . . . . . . . . . . . Corruption Blocked . | . . . . . . . . . . . Effects 61 | . . . . . . . 25 11 14 11 Message Errors 18 | . . . . . . . 5 2 9 2 Matter Fused 16 | . . . . . . . 8 4 1 3 Heat Flow Errors 8 | . . . . . . . 2 3 2 1 Energy Discharges 5 | . . . . . . . 3 . . 2 Parts Rejected 2 | . . . . . . . 1 . . 1 Data Loss (minor) 9 | . . . . . . . 5 1 2 1 Misfires 2 | . . . . . . . 1 1 . . Weapon Failures 1 | . . . . . . . . . . 1 Overload Shots . | . . . . . . . . . . . Overflow Damage 219 | . 48 . . 59 . . 28 13 . 71 Projectiles 112 | . . . . . . . 28 13 . 71 Explosions 107 | . 48 . . 59 . . . . . . Melee . | . . . . . . . . . . . Knockbacks 12 | . . . . . . . 2 2 . 8 Impact . | . . . . . . . . . . . Kinetic 12 | . . . . . . . 2 2 . 8 Secondary . | . . . . . . . . . . . Self-Inflicted Damage 423 | . 54 . . 126 . . 243 . . . Shots 8 | . 2 . . 3 . . 3 . . . Rammed . | . . . . . . . . . . . Targets Rammed . | . . . . . . . . . . . Kicked . | . . . . . . . . . . . Crushed . | . . . . . . . . . . . Highest Temperature 213 | . 18 18 . 32 15 28 213 203 170 154 Average Temperature 22 | . 9 11 . 18 8 8 99 86 92 113 Received Heat Transfer 2013 | . 192 78 . 78 666 891 6 . 18 84 Siege Activations . | . . . . . . . . . . . Robots Corrupted . | . . . . . . . . . . . Combat Hostiles . | . . . . . . . . . . . Parts Fried . | . . . . . . . . . . . Impact Corruptions . | . . . . . . . . . . . Robots Melted . | . . . . . . . . . . . Combat Hostiles . | . . . . . . . . . . . Parts Melted 1 | . . . . . . . 1 . . . Heat Transferred 901 | . . . . . . 407 494 . . . Parts Sabotaged . | . . . . . . . . . . . Parts Stolen . | . . . . . . . . . . . Parts Stripped . | . . . . . . . . . . . Power Chain Reactions . | . . . . . . . . . . . Alert | -11 -10 -10 -10 -9 -8 -8 -7 -7 -7 -7 ------- Run | Yrd Mat Min Exi Min Mat Sto Fac Low Low Zio Peak Influence 511 | 25 232 180 . 153 203 398 511 . . . Initial 90 | . 3 90 . . 11 85 44 . . . Average 51 | . 98 142 . 78 92 120 139 . . . Maximum Alert Level 2 | . 1 . . . 1 1 2 . . . Low Security (%) 94 | 100 82 100 . 100 99 82 78 . . . Level 1 5 | . 17 . . . . 17 19 . . . Level 2 . | . . . . . . . 1 . . . Level 3 . | . . . . . . . . . . . Level 4 . | . . . . . . . . . . . Level 5 . | . . . . . . . . . . . High Security . | . . . . . . . . . . . Max Security . | . . . . . . . . . . . Squads Dispatched 19 | . 3 . . 1 2 9 4 . . . Investigation 3 | . 1 . . . . 2 . . . . Extermination 3 | . . . . . . . 3 . . . Reinforcement 10 | . 2 . . 1 2 4 1 . . . Assault . | . . . . . . . . . . . Garrison 3 | . . . . . . 3 . . . . Intercept . | . . . . . . . . . . . Searches Triggered . | . . . . . . . . . . . Construction Impeded 1 | . . . . 1 . . . . . . Haulers Reinforced . | . . . . . . . . . . . Active Scanning Responses . | . . . . . . . . . . . Cargo Convoy Interrupts . | . . . . . . . . . . . Stealth | -11 -10 -10 -10 -9 -8 -8 -7 -7 -7 -7 --------- Run | Yrd Mat Min Exi Min Mat Sto Fac Low Low Zio Distress Signals 9 | . 2 . . . . 5 2 . . . Communications Jammed . | . . . . . . . . . . . Distress Signals . | . . . . . . . . . . . Times Spotted 155 | . 27 5 . 6 24 40 20 5 6 22 Peak Tracking Total 8 | . 5 3 . 3 4 4 2 3 4 8 Tactical Retreats 9 | . . 1 . 2 1 2 1 . 1 1 Traps | -11 -10 -10 -10 -9 -8 -8 -7 -7 -7 -7 ------- Run | Yrd Mat Min Exi Min Mat Sto Fac Low Low Zio Traps Triggered 6 | . 2 . . . . 2 2 . . . Indirectly . | . . . . . . . . . . . Trap Hack Attempts . | . . . . . . . . . . . Triggered . | . . . . . . . . . . . Disarmed . | . . . . . . . . . . . Reprogrammed 4 | . . . . . . . 4 . . . Reused 2 | . . . . . . . 2 . . . Traps Extracted . | . . . . . . . . . . . Installed . | . . . . . . . . . . . Triggered 2 | . . . . . . . 2 . . . Machines | -11 -10 -10 -10 -9 -8 -8 -7 -7 -7 -7 ---------- Run | Yrd Mat Min Exi Min Mat Sto Fac Low Low Zio Machines Disabled 23 | . 2 . . 1 1 5 11 . 1 2 Max in Single Turn 6 | . 2 . . 1 1 1 6 . 1 1 Machines Repaired . | . . . . . . . . . . . Machines Dismantled . | . . . . . . . . . . . Machines Sabotaged . | . . . . . . . . . . . Overloaded Fab Kills . | . . . . . . . . . . . Hacking | -11 -10 -10 -10 -9 -8 -8 -7 -7 -7 -7 --------- Run | Yrd Mat Min Exi Min Mat Sto Fac Low Low Zio Machines Accessed 46 | . 4 . 4 . 13 8 15 . 1 1 Terminals 26 | . 4 . . . 9 5 8 . . . Fabricators 2 | . . . . . . . 2 . . . Repair Stations 4 | . . . . . 1 1 2 . . . Recycling Units 3 | . . . . . 1 1 1 . . . Scanalyzers 3 | . . . . . 2 . 1 . . . Garrison Access 2 | . . . . . . 1 1 . . . Total Hacks 154 | . 9 . 49 . 39 21 27 . 1 8 Successful 117 | . 3 . 49 . 26 15 15 . 1 8 Failed 37 | . 6 . . . 13 6 12 . . . Catastrophic 6 | . . . . . 1 1 4 . . . Database Lockouts . | . . . . . . . . . . . Manual 48 | . 7 . 1 . 21 9 9 . . 1 Terminals 65 | . 9 . . . 27 13 16 . . . Fabricators 2 | . . . . . . . 2 . . . Repair Stations 11 | . . . . . 2 5 4 . . . Recycling Units 7 | . . . . . 4 1 2 . . . Scanalyzers 8 | . . . . . 6 . 2 . . . Garrison Access 3 | . . . . . . 2 1 . . . Terminal Hacks 82 | . . . 49 . 10 8 6 . 1 8 Record 58 | . . . 49 . 8 . 1 . . . Part Schematic 8 | . . . . . . . . . . 8 Robot Analysis 2 | . . . . . 1 . 1 . . . Open Door 4 | . . . . . . 3 . . 1 . Open DSF 3 | . . . . . . . 3 . . . Alert Level 1 | . . . . . 1 . . . . . Unreport Threat 3 | . . . . . . 3 . . . . Reprogram Traps 1 | . . . . . . . 1 . . . Dispatch Records 1 | . . . . . . 1 . . . . Zone Layout 1 | . . . . . . 1 . . . . Fabricator Hacks 1 | . . . . . . . 1 . . . Build 1 | . . . . . . . 1 . . . Repair Station Hacks 9 | . . . . . 2 4 3 . . . Scan Component 5 | . . . . . 1 2 2 . . . Repair 4 | . . . . . 1 2 1 . . . Recycling Unit Hacks 6 | . . . . . 4 1 1 . . . Process 1 | . . . . . 1 . . . . . Report Inventory 3 | . . . . . 1 1 1 . . . Retrieve Matter 2 | . . . . . 2 . . . . . Scanalyzer 6 | . . . . . 5 . 1 . . . Insert Component 4 | . . . . . 3 . 1 . . . Analyze 2 | . . . . . 2 . . . . . Garrison Access Hacks . | . . . . . . . . . . . Unauthorized Hacks 13 | . 3 . . . 5 2 3 . . . Terminals 13 | . 3 . . . 5 2 3 . . . Assimilate 2 | . . . . . 2 . . . . . Botnet 11 | . 3 . . . 3 2 3 . . . Fabricators . | . . . . . . . . . . . Repair Stations . | . . . . . . . . . . . Recycling Units . | . . . . . . . . . . . Scanalyzers . | . . . . . . . . . . . Garrison Access . | . . . . . . . . . . . Data Cores Recovered . | . . . . . . . . . . . Used . | . . . . . . . . . . . Hacking Detections 34 | . 4 . . . 14 5 11 . . . Full Trace Events 2 | . . . . . 1 1 . . . . Feedback Events . | . . . . . . . . . . . Feedback Blocked . | . . . . . . . . . . . Robot Schematics Acquired . | . . . . . . . . . . . Robots Built . | . . . . . . . . . . . Authchips . | . . . . . . . . . . . Time . | . . . . . . . . . . . Total Robot Build Rating . | . . . . . . . . . . . Part Schematics Acquired 9 | . . . . . 1 . . . . 8 Parts Built 2 | . . . . . . . 2 . . . Authchips . | . . . . . . . . . . . Time 117 | . . . . . . . 117 . . . Total Part Build Rating 14 | . . . . . . . 14 . . . Parts Repaired 4 | . . . . . 1 2 1 . . . Time 177 | . . . . . 32 126 19 . . . Parts Recycled . | . . . . . . . . . . . Recycled Matter 17 | . . . . . 17 . . . . . Retrieved Matter 17 | . . . . . 17 . . . . . Retrieved Components . | . . . . . . . . . . . Parts Scanalyzed 1 | . . . . . 1 . . . . . Part Schematics Acquired 1 | . . . . . 1 . . . . . Parts Damaged 1 | . . . . . 1 . . . . . Bothacking | -11 -10 -10 -10 -9 -8 -8 -7 -7 -7 -7 ------------ Run | Yrd Mat Min Exi Min Mat Sto Fac Low Low Zio Used RIF Installer . | . . . . . . . . . . . Robots Hacked . | . . . . . . . . . . . Non-combat . | . . . . . . . . . . . Combat . | . . . . . . . . . . . Robot Hacks Applied . | . . . . . . . . . . . Relay Couplers Released . | . . . . . . . . . . . Fabnet Peak Effective % . | . . . . . . . . . . . Robots Rewired . | . . . . . . . . . . . Allies Hacked . | . . . . . . . . . . . Hacks Repelled . | . . . . . . . . . . . Allies | -11 -10 -10 -10 -9 -8 -8 -7 -7 -7 -7 -------- Run | Yrd Mat Min Exi Min Mat Sto Fac Low Low Zio Total Allies 2 | . . . . . 2 . . . . . Largest Group 1 | . . . . . 1 . . . . . Highest-Rated Group 10 | . . . . . 10 . . . . . Highest-Rated Ally 10 | . . . . . 10 . . . . . Total Orders 14 | . . . . . . 14 . . . . EXPLORE 14 | . . . . . . 14 . . . . Ally Attacks . | . . . . . . . . . . . Total Damage . | . . . . . . . . . . . Kills . | . . . . . . . . . . . Allies Corrupted . | . . . . . . . . . . . Allies Melted . | . . . . . . . . . . . Intel | -11 -10 -10 -10 -9 -8 -8 -7 -7 -7 -7 ------- Run | Yrd Mat Min Exi Min Mat Sto Fac Low Low Zio Robot Analysis Total 2 | . . . . . 1 . 1 . . . Derelict Logs Recovered 6 | . . . . 2 . . . 2 1 1 Drone Launches 18 | . . . . . . 18 . . . . Drone Recoveries 2 | . . . . . . 2 . . . . Exploration | -11 -10 -10 -10 -9 -8 -8 -7 -7 -7 -7 ------------- Run | Yrd Mat Min Exi Min Mat Sto Fac Low Low Zio Turns Passed 27230 | 11925 1190 222 2048 746 2511 3460 1926 510 934 1758 Spaces Moved 8182 | 842 480 115 1144 490 1208 695 1085 408 685 1030 Core 1 | 1 . . . . . . . . . . Treads 455 | 22 . . 432 . . . . . . 1 Legs 1538 | . . . . . 843 695 . . . . Wheels 6188 | 819 480 115 712 490 365 . 1085 408 685 1029 Hover . | . . . . . . . . . . . Flight . | . . . . . . . . . . . Fastest Speed 50 | 50 95 140 140 140 90 90 115 115 115 130 Average Speed 136 | 96 137 140 177 140 144 158 115 115 128 130 Slowest Speed 320 | 160 140 140 240 140 170 170 115 115 130 320 Overloaded Moves . | . . . . . . . . . . . Propulsion Burnouts . | . . . . . . . . . . . Robots Hopped . | . . . . . . . . . . . Cave-ins Triggered . | . . . . . . . . . . . Exploration Rate (%) 71 | 111 67 28 94 80 91 75 26 52 78 89 Regions Visited 10 Branch Regions 7 Pre-discovered Areas 6 | . . . 1 . . . . . . 5 Known Exits Taken 1 | . . . . . . 1 . . . . Unknown Exits Taken 9 | 1 1 1 1 1 1 . 1 1 1 . Scrap Searched 13 | . . 1 . 2 . . . 3 3 4 Spaces Dug 13 | . . . . . 8 5 . . . . Terrain Destroyed 308 | . 40 . . 57 69 8 118 11 3 2 Melee 13 | . . . . . 8 5 . . . . Projectile 26 | . . . . . . 3 7 11 3 2 AOE 269 | . 40 . . 57 61 . 111 . . . Terrain Rammed . | . . . . . . . . . . . Walls Destroyed . | . . . . . . . . . . . Machines Disabled . | . . . . . . . . . . . Actions | -11 -10 -10 -10 -9 -8 -8 -7 -7 -7 -7 --------- Run | Yrd Mat Min Exi Min Mat Sto Fac Low Low Zio Total 23626 | 11923 922 150 1160 532 1854 2839 1705 426 727 1388 Wait 14761 | 11047 350 12 . 19 480 1984 529 8 26 306 Move 8172 | 841 479 114 1143 489 1207 694 1084 407 684 1030 Hop . | . . . . . . . . . . . Pick Up 92 | 9 17 1 2 3 28 12 14 . 4 2 Fast Attach 32 | 7 . 3 . 1 8 5 5 . 1 2 Attach 36 | . 2 1 . 1 7 10 4 . . 11 Detach 5 | . . . . . 1 1 3 . . . Swap 53 | 1 6 2 1 3 23 10 6 . . 1 Drop 74 | 1 7 2 2 5 30 7 12 . 4 4 Fire 319 | 17 61 15 . 11 36 99 29 11 8 32 Melee 47 | . . . . . 34 10 3 . . . Ram . | . . . . . . . . . . . Kick . | . . . . . . . . . . . Crush . | . . . . . . . . . . . Escape Stasis 16 | . . . . . . . 16 . . . Rewire 12 | . . . 12 . . . . . . . Trap . | . . . . . . . . . . . Miscellaneous 7 | . . . . . . 7 . . . . Route ------- -11/Scrapyard -10/Materials (discovered 3 exits: [*Mat] / [*Min x2]) -10/Mines -10/Exiles (discovered 2 exits: [*Min x2]) -9/Mines (discovered 2 exits: *Mat x2) -8/Materials (discovered 5 exits: *Fac x3 / *Sto x2) -8/Storage -7/Factory -7/Lower Caves -7/Lower Caves (discovered 2 exits: [*Fac] / *Zio) -7/Zion (discovered 1 exit: [*Pro]) History --------- Turn | Location | Event 12 | -11/Scrapyard | Discovered new exit (range 14) 11926 | -11/Scrapyard | Entered Materials 11942 | -10/Materials | Build established: Mutant 12616 | -10/Materials | Discovered new exit (range 10) 12769 | -10/Materials | Discovered new exit (range 11) 13004 | -10/Materials | Discovered new exit (range 6) 13116 | -10/Materials | Entered Mines 13181 | -10/Mines | Met a Derelict bent on vengeance 13267 | -10/Mines | Core integrity fell below 50% 13319 | -10/Mines | Found a hidden stash of uninstalled traps 13331 | -10/Mines | Deemed a non-threat by the Exiles lab entrance 13331 | -10/Mines | Discovered new exit (range 6) 13338 | -10/Mines | Entered Exiles 13359 | -10/Exiles | Discovered new exit (range 15) 13382 | -10/Exiles | Met 8R-AWN 13410 | -10/Exiles | Met EX-HEX 13471 | -10/Exiles | Met EX-DEC 13577 | -10/Exiles | Visited The Gauntlet 14033 | -10/Exiles | Discovered new exit (range 10) 14103 | -10/Exiles | Learned location of Zion (-7) 14134 | -10/Exiles | Met EX-BIN 14278 | -10/Exiles | Aligned with FarCom system 14279 | -10/Exiles | Given EX-Vault access code 14331 | -10/Exiles | Opened EX-Vault 14343 | -10/Exiles | Found Prototype Leg 14346 | -10/Exiles | Found Prototype Leg 14400 | -10/Exiles | Warned to stay clear of 0b10 Research branches 15386 | -10/Exiles | Left Exiles lab with Potential Leg 15386 | -10/Exiles | Entered Mines 15396 | -9/Mines | Discovered new exit (range 7) 15396 | -9/Mines | Discovered new exit (range 15) 15625 | -9/Mines | Learned Materials interactive machine intel 15666 | -9/Mines | Found a damaged Exp. Sensor Array with a note attached 15669 | -9/Mines | Found Prototype Device 15847 | -9/Mines | Learned 2 Materials zone layouts 15857 | -9/Mines | Received a Rocket Launcher from a helpful Derelict 16132 | -9/Mines | Entered Materials 16132 | -8/Materials | Evolved 4 slots: Propulsion x1, Utility x3 16133 | -8/Materials | Identified exit to Factory 16134 | -8/Materials | Loaded intel: 15 interactive machine locations 16352 | -8/Materials | Met 7R-MNS 16425 | -8/Materials | Build established: Scavenger-Mutant 16543 | -8/Materials | Repaired Hvy. Assault Rifle 16566 | -8/Materials | Discovered exit to Factory (range 5) 16879 | -8/Materials | Identified Potential Leg (x2) 16901 | -8/Materials | Build established: Mutant 17106 | -8/Materials | Discovered exit to Factory (range 3) 17456 | -8/Materials | Discovered new exit (range 15) 18319 | -8/Materials | Identified Exp. Sensor Array 18425 | -8/Materials | Discovered new exit (range 16) 18550 | -8/Materials | Lost 3 parts (1p1u1w) 18643 | -8/Materials | Entered Storage 18850 | -8/Storage | Build established: Scavenger-Mutant 21099 | -8/Storage | Discovered exit to Factory (range 54) 21205 | -8/Storage | Lost 11 allies 21220 | -8/Storage | Lost 3 parts (1p2w) 21404 | -8/Storage | Garrison activated, responded to threat 21461 | -8/Storage | Build established: Mutant 21583 | -8/Storage | Repaired Broken Cld. Particle Cannon? 21587 | -8/Storage | Core integrity fell below 50% 21661 | -8/Storage | Repaired Adv. Treads 22103 | -8/Storage | Entered Factory 22103 | -7/Factory | Evolved 2 slots: Propulsion x1, Utility x1 22440 | -7/Factory | Repaired Adv. Treads 22633 | -7/Factory | Fabricated Hardcell Cannon? 24001 | -7/Factory | Discovered new exit (range 11) 24029 | -7/Factory | Entered Lower Caves 24136 | -7/Lower Caves | Learned location of 1 exit from Factory 24439 | -7/Lower Caves | Learned Factory emergency access door positions 24506 | -7/Lower Caves | Discovered new exit (range 7) 24539 | -7/Lower Caves | Entered another Lower Caves area 24540 | -7/Lower Caves | Encountered a Warlord checkpoint 24694 | -7/Lower Caves | Learned Factory garrison access intel 24754 | -7/Lower Caves | Discovered new exit (range 6) 24939 | -7/Lower Caves | Attracted the attention of an 0b10 checkpoint 25419 | -7/Lower Caves | Discovered new exit (range 6) 25473 | -7/Lower Caves | Entered Zion 25545 | -7/Zion | Discovered new exit (range 13) 25631 | -7/Zion | System corruption cleaned by Quarantine Array 25788 | -7/Zion | Learned location of Armory (-3) 25891 | -7/Zion | Learned location of Data Miner (-6) 26387 | -7/Zion | Learned location of Warlord (-5) 26551 | -7/Zion | Learned Factory emergency access door positions 26688 | -7/Zion | Rebuked by Imprinter 26869 | -7/Zion | Attempted to imprint without authorization 26869 | -7/Zion | Attacked by Zionites 27154 | -7/Zion | NK-0LA came to Zion's defense 27166 | -7/Zion | System corruption reached 10% 27193 | -7/Zion | Core integrity fell below 50% 27207 | -7/Zion | Core integrity fell below 20% 27231 | -7/Zion | Destroyed by NK-0LA with NK-0LA's Tesla Doomcannon Last Messages --------------- Identified F-cell Engine. KL-KXS(z) overheating. Adv. Targeting Computer destroyed. KL-KXS(z) overheating. KL-KXS(z) heat spikes uncontrollably. KL-KXS(z) overheating. KL-KXS(z) heat spikes uncontrollably. KL-KXS(z) overheating. KL-KXS(z) heat short circuits Dynamic Insulation System. KL-KXS(z) overheating. >YYB2=UALBS9VN3PT6J&WWDGF KL-KXS(z) overheating. KL-KXS(z) heat damages core (-4). KL-KXS(z) overheating. Force Booster destroyed. KL-KXS(z) destroyed. Phase Shifter destroyed. 2S-1OX(z) destroyed. Adv. Targeting Computer destroyed. Map ----- +----------------------------------------------------+ | ?????????????????????????????????????#"""####????? | | ?????????????????????????###??####???#"&"##"##?### | | ??????????????????????????""###""#####& ] ""###"# | | ??????????????????????????#""""""""""#" "#"""" | | ?????????????????????????##"" """"""""" """"" | | ?????????????????????????#""" """ "" | | ??????????????????????????#"" """ " | | ????????????????????????###"" """" "" | | ???????????????????????##"""" """ """"" | | ????????????????????####"""" "" """"" | | ?????????????????####""""" %"""""" | | ??????????????????"""#"""" """" """"" | | ??????????????????#"""#"" % """""" ""##" | | ??????????????????" X""" * """##" ""#"" "" | | ??????????????????# """" = ""##"""" """#"" "" | | ?????????????????## """"" ""###""" "#"#"" "" | | ?????????????????" """""""" """""" "" | | ?????????????????" """" | | ?????????????????# """""" | | ??????????????""""""""#"""""%!%% | | ??????????????##"""#""#""" "%[ """" | | ???????????????#######"#""! "!% """" | | ???????????????????## %% %!*"""""#"" "" | | ???????????????????# =%%=! """"""#" """ | | ???????????????????#" %%= # "#"#"" """ | | ???????????????????## @*= """ """ | | ????????????????????## % x "" """ | | ?????????????????????# / % """" | | ?????????????????????## #""""" | | ?????????????????????#" " *"""" " " ""#""" | | ?????????????????????#"" % %"" """" """### | | ?????????????##########" ] ; " """"" ""##?? | | ?????????????#"""##"""""" " # " """"" ""#??? | | ?###########?#"""""" """" """##z """ ""#??? | | ?""""""""" ###" % [ """ "##" """ ""#??? | | """""""""" #""" %% "##" z"#"" "##?? | | "" #""" * / ""##"" "#"" ""#?? | | """""" ##" =%* """" """""" """ "##? | | """"""" /""""" ""###" ""## | | """"""" "##" ""##"" """ | | """"""" ""##"" "##""" "" | | """""" ###" "#"#"""""""##" """" | | "" ##"" "####"""####"" """# | | """""""""" #""" ""#?######""" "## | | """""""""" #""" ""##?????#""" ""# | | ############""" """#?????##" """"## | | ???????#####""# "###?????#"" """""# | | ??????##"" #### #"#??????#"" " """"#? | | ??????# % #""#?????#""" " ""#? | | ??????#" % #?"#?????##"" ""#? | +----------------------------------------------------+ Best States ------------- Heat Dissipation 88 Energy Generation 19 Energy Capacity 500 Matter Stores 300 Matter Capacity 300 Sight Range 18 Robot Scan Range 20 Terrain Scan Range 16 Terrain Scan Density 10 Jamming Range 12 Armor Coverage 450 Phase Shifting 5 Evasion (%) 57 Targeting Accuracy 16 Recoil Reduction 2 Force Boost 20 Offensive Hacking 20 Item Schematics ----------------- Cld. Particle Cannon | -8/Materials | Scanalyzed Beamcaster | -7/Zion | Free Hvy. Beamcaster | -7/Zion | Free Riot Gun | -7/Zion | Free Battle Rifle | -7/Zion | Free Hvy. Battle Rifle | -7/Zion | Free Battle Cannon | -7/Zion | Free Flamer | -7/Zion | Free Enh. Flamer | -7/Zion | Free Robot Schematics ------------------ None Fabricated ------------ Hardcell Cannon | x2 | -7/Factory | Preloaded Alien Tech Used ----------------- None Achievements -------------- Just What I Needed Part-time Excavator Release The Drones! Remodeling Robot Respite Safety First Challenges ------------ None Game ------ Seed HeavyCooledExoskeleton Manual? 0 Play Time 04:02:59 Cumulative 7.8 hours Start 2024.06.23 @ 11:04:02 End 2024.06.23 @ 15:57:47 Sessions 1 Manual Loads 0 Difficulty Rogue Special Mode None Game No. 4 Rogue 4 Adventurer 0 Explorer 0 Win Type - Total 0 Types 0/0/0/0/0/0/0/0/0 Lore% 17 Gallery% 10 Achievement% 13 Wizard Run 0 Options --------- Layout 1 ASCII 0 Keyboard 0 Movement Mouse Keybinds 0 Fullscreen 1 Font 24/Smallcaps Map View 50x35 Zoom Use 0% Tactical HUD 0 Map Filters NONE Filters NONE Steam 1 RUN: e0dc4bb3-206a-4402-9681-ba4ec268a869